bitfinex-derivatives/quotes_BTCF0:USTF0_20251219
["timestamp","ask_amount","ask_price","bid_price","bid_amount"]
[1766159399092,0.41460805,87872.0,87828.0,1.45144]
[1766159399291,0.0113886,87847.0,87815.0,1.45148]
[1766159399478,0.0113888,87845.0,87823.0,0.0113916]
[1766159399683,0.00586617,87846.0,87823.0,0.0113916]
[1766159399885,0.00586617,87846.0,87826.0,0.0113912]
[1766159400084,0.0001707,87845.0,87826.0,0.0113912]
[1766159400293,0.0001707,87845.0,87825.0,0.0113913]
[1766159400781,0.0001707,87845.0,87821.0,0.0113918]
[1766159400984,0.00010617,87846.0,87817.0,0.0113924]
[1766159401290,0.0113828,87891.0,87817.0,0.0113924]
[1766159401291,0.08993854,87873.0,87853.0,0.0113877]
[1766159401492,0.02274447,87876.0,87841.0,0.00576]
[1766159401493,0.0113867,87861.0,87841.0,0.00576]
[1766159401795,0.41460805,87870.0,87848.0,0.0113883]
[1766159401991,0.06039825,87903.0,87834.0,0.11385436]
[1766159401992,0.41460805,87890.0,87850.0,0.0001707]
[1766159402291,0.0113816,87901.0,87850.0,0.0001707]
[1766159402292,0.00588954,87889.0,87850.0,0.0001707]
[1766159402492,8.954e-05,87889.0,87876.0,0.0113847]
[1766159402790,0.0058,87888.0,87862.0,0.0058]
[1766159402992,0.0171832,87888.0,87864.0,0.0113862]
[1766159403191,0.0113842,87881.0,87867.0,7e-07]
[1766159403392,0.0001707,87885.0,87856.0,0.0113872]
[1766159403689,0.0113844,87879.0,87859.0,0.0113869]
[1766159403895,0.0113854,87871.0,87851.0,0.0171879]
[1766159404089,0.0113854,87871.0,87851.0,0.0113879]
[1766159404289,0.011385,87875.0,87853.0,0.0113877]
[1766159404489,0.0001707,87873.0,87853.0,0.0113877]
[1766159405284,0.0113857,87869.0,87852.0,0.0001707]
[1766159405483,0.0058,87868.0,87852.0,0.0001707]
[1766159406491,0.0058,87868.0,87853.0,0.0113876]
[1766159406714,1e-07,87873.0,87854.0,0.0113876]
[1766159406884,1e-07,87873.0,87869.0,0.0113856]
[1766159407088,0.0113823,87895.0,87874.0,0.0113849]
[1766159407283,0.00212,87888.0,87864.0,0.0113862]
[1766159407497,0.00212,87888.0,87877.0,0.0113846]
[1766159407697,0.0044,87887.0,87862.0,0.0058]
[1766159408101,0.41460805,87900.0,87866.0,0.0001707]
[1766159408398,0.0113816,87901.0,87879.0,0.0113842]
[1766159408600,0.0113816,87901.0,87866.0,0.0001707]
[1766159408601,0.00212,87894.0,87872.0,0.0058]
[1766159408791,0.06039825,87931.0,87882.0,0.011384]
[1766159408995,0.02572372,87930.0,87901.0,0.0113814]
[1766159409188,0.41460805,87940.0,87914.0,0.0113798]
[1766159409189,0.0113765,87940.0,87914.0,0.0113798]
[1766159409390,0.03155499,87939.0,87914.0,0.0113798]
[1766159409591,0.02959499,87938.0,87908.0,0.0113805]
[1766159409805,0.0113777,87931.0,87907.0,0.0001707]
[1766159409992,0.00384,87938.0,87907.0,0.0001707]
[1766159410299,0.0113792,87919.0,87893.0,0.0113825]
[1766159410485,0.0001706,87931.0,87891.0,0.00384]
[1766159410691,0.0058,87939.0,87921.0,0.0113788]
[1766159410901,0.0058,87940.0,87915.0,0.0113796]
[1766159411201,0.00239424,87960.0,87916.0,0.00488]
[1766159411386,0.00239424,87960.0,87910.0,0.41553482]
[1766159411387,0.0171741,87959.0,87919.0,0.0001706]
[1766159411702,0.0113754,87949.0,87926.0,0.0113782]
[1766159411895,0.0058,87950.0,87928.0,0.011378]
[1766159412099,0.0171752,87950.0,87928.0,0.011378]
[1766159412398,0.0001706,87948.0,87928.0,0.011378]
[1766159412598,0.0001706,87948.0,87927.0,0.0058]
[1766159412788,0.0113756,87947.0,87927.0,0.0058]
[1766159412994,0.0001706,87948.0,87927.0,0.0058]
[1766159413300,0.0115461,87948.0,87927.0,0.0058]
[1766159414005,1e-07,87948.0,87944.0,0.0113758]
[1766159414306,0.0058,87962.0,87939.0,0.0171765]
[1766159414608,0.0142537,87962.0,87939.0,0.00564]
[1766159414902,0.0113746,87955.0,87937.0,0.00576]
[1766159415102,0.0113746,87955.0,87937.0,0.0001706]
[1766159415103,0.0113758,87945.0,87937.0,0.0001706]
[1766159415291,0.0113759,87945.0,87920.0,0.11370613]
[1766159415491,0.0058,87949.0,87921.0,0.0058]
[1766159416290,0.28323219,87940.0,87926.0,0.0001706]
[1766159416496,0.0113768,87938.0,87926.0,6e-07]
[1766159416893,0.0058,87939.0,87926.0,6e-07]
[1766159417103,0.011377,87936.0,87926.0,6e-07]
[1766159417296,0.0058,87939.0,87926.0,6e-07]
[1766159417901,0.0113773,87934.0,87926.0,6e-07]
[1766159418207,0.0171766,87939.0,87926.0,6e-07]
[1766159418705,0.011377,87936.0,87926.0,6e-07]
[1766159418896,0.0113779,87930.0,87926.0,6e-07]
[1766159419093,0.0058,87931.0,87926.0,6e-07]
[1766159420295,0.0113778,87930.0,87926.0,6e-07]
[1766159420692,0.0001706,87937.0,87926.0,6e-07]
[1766159421010,0.0113743,87958.0,87932.0,0.0113775]
[1766159421208,0.01106206,87976.0,87933.0,0.0058]
[1766159421209,0.00384,87959.0,87933.0,0.0058]
[1766159421391,0.0113749,87952.0,87933.0,0.0058]
[1766159421713,0.0113761,87943.0,87904.0,0.0113811]
[1766159421903,0.0001706,87932.0,87919.0,0.0113791]
[1766159422100,0.0058,87945.0,87926.0,0.0113782]
[1766159422404,0.0058,87945.0,87918.0,0.0058]
[1766159422603,0.0058,87945.0,87925.0,0.0113783]
[1766159422807,0.0058,87945.0,87930.0,0.0113777]
[1766159423009,0.0058,87945.0,87926.0,0.0113781]
[1766159423193,0.0001706,87944.0,87926.0,0.0113781]
[1766159423504,0.0113789,87922.0,87919.0,1e-08]
[1766159423709,0.00564,87921.0,87877.0,1.4514]
[1766159424003,0.0113794,87917.0,87881.0,0.11372036]
[1766159424196,0.0113794,87917.0,87894.0,0.0113824]
[1766159424605,0.0001706,87914.0,87897.0,0.0001706]
[1766159424996,0.0001706,87914.0,87897.0,0.0115526]
[1766159425207,0.0001706,87914.0,87897.0,0.0001706]
[1766159425406,0.0001706,87914.0,87897.0,6e-07]
[1766159426108,0.0001706,87914.0,87901.0,0.0113814]
[1766159426411,0.0058,87913.0,87897.0,6e-07]
[1766159427301,0.0058,87913.0,87901.0,0.0113815]
[1766159427511,0.0058,87913.0,87897.0,6e-07]
[1766159428307,0.0058,87913.0,87898.0,0.0113819]
[1766159428698,0.0058,87913.0,87897.0,0.0113826]
[1766159428905,0.0058,87913.0,87897.0,6e-07]
[1766159430205,0.0058,87913.0,87904.0,0.0113811]
[1766159430614,0.0058,87913.0,87897.0,6e-07]
[1766159431411,0.0113806,87909.0,87897.0,6e-07]
[1766159431910,0.28323219,87910.0,87879.0,0.01150371]
[1766159432103,0.28323219,87900.0,87879.0,0.00011951]
[1766159432306,0.0058,87899.0,87879.0,0.00011951]
[1766159432610,0.0058,87899.0,87883.0,0.0113838]
[1766159432814,0.0058,87899.0,87885.0,0.0113834]
[1766159433117,0.0058,87901.0,87888.0,0.0113831]
[1766159433319,0.00492,87920.0,87885.0,0.00568]
[1766159433508,1e-07,87920.0,87911.0,0.0113801]
[1766159433712,1e-07,87920.0,87913.0,0.0113798]
[1766159433910,0.0113767,87939.0,87920.0,0.011379]
[1766159434111,0.0113769,87937.0,87916.0,0.0113795]
[1766159434508,0.0113773,87934.0,87918.0,0.0001706]
[1766159434710,0.0113775,87933.0,87918.0,0.0001706]
[1766159434914,0.0001706,87935.0,87910.0,0.0113803]
[1766159435112,0.28323219,87930.0,87882.0,0.06140071]
[1766159435314,0.0113795,87917.0,87898.0,0.0113818]
[1766159435512,0.0058,87916.0,87898.0,0.0113818]
[1766159435909,0.0058,87916.0,87901.0,0.0113815]
[1766159436105,0.0059706,87916.0,87898.0,0.0001706]
[1766159436734,0.0113799,87914.0,87898.0,0.0001706]
[1766159437105,0.0001706,87916.0,87898.0,0.0001706]
[1766159437304,0.00576,87915.0,87899.0,0.0113817]
[1766159437510,0.00576,87915.0,87898.0,0.0001706]
[1766159437809,0.00288,87921.0,87898.0,0.0001706]
[1766159438116,0.00288,87921.0,87903.0,0.0113811]
[1766159438311,0.00288,87921.0,87898.0,0.0001706]
[1766159438616,0.0113794,87918.0,87899.0,0.0113817]
[1766159438820,0.0113797,87915.0,87898.0,0.0001706]
[1766159439116,0.01138,87913.0,87898.0,0.0001706]
[1766159439326,0.00576,87912.0,87899.0,0.0113818]
[1766159439620,0.00576,87912.0,87898.0,0.0001706]
[1766159440211,0.0113803,87911.0,87898.0,0.0001706]
[1766159440621,0.00576,87912.0,87898.0,0.0001706]
[1766159440820,0.00576,87912.0,87898.0,0.0115524]
[1766159441222,0.00576,87912.0,87902.0,0.0113813]
[1766159441417,0.0059306,87917.0,87898.0,0.0001706]
[1766159441612,0.0059306,87917.0,87905.0,0.0113809]
[1766159442012,0.005,87918.0,87905.0,0.0113809]
[1766159442615,0.005,87918.0,87898.0,0.0001706]
[1766159442815,0.0113796,87916.0,87898.0,0.0001706]
[1766159443015,0.0115502,87916.0,87898.0,0.0001706]
[1766159443219,0.0001706,87916.0,87898.0,0.0001706]
[1766159443419,0.0113803,87910.0,87898.0,6e-07]
[1766159443623,0.00576,87909.0,87898.0,6e-07]
[1766159444217,0.0113812,87904.0,87898.0,6e-07]
[1766159444424,0.00576,87909.0,87898.0,6e-07]
[1766159446226,0.0113814,87903.0,87898.0,6e-07]
[1766159446419,0.00576,87909.0,87898.0,6e-07]
[1766159446620,0.0113813,87903.0,87898.0,6e-07]
[1766159446821,0.00576,87902.0,87898.0,6e-07]
[1766159447421,0.00576,87901.0,87898.0,6e-07]
[1766159447615,0.0001706,87916.0,87898.0,6e-07]
[1766159447815,0.29460869,87940.0,87898.0,6e-07]
[1766159447816,0.0113753,87949.0,87898.0,6e-07]
[1766159448026,0.0113741,87959.0,87938.0,0.0113766]
[1766159448228,0.03147056,87958.0,87925.0,0.00384]
[1766159448427,0.28323219,87950.0,87928.0,0.011378]
[1766159448628,0.00576,87949.0,87925.0,0.00384]
[1766159448825,0.0001706,87946.0,87928.0,0.0001706]
[1766159449216,0.0001706,87946.0,87933.0,0.0113773]
[1766159451027,0.0001706,87946.0,87928.0,0.0001706]
[1766159451534,0.0001706,87946.0,87932.0,0.0113775]
[1766159452626,0.28323219,87942.0,87928.0,0.0001706]
[1766159454229,0.00576,87941.0,87928.0,0.0001706]
[1766159454624,0.00576,87941.0,87931.0,0.0113776]
[1766159455017,0.0001706,87946.0,87928.0,0.0001706]
[1766159455018,0.0113759,87945.0,87928.0,0.0001706]
[1766159455628,0.0059306,87946.0,87928.0,0.0001706]
[1766159455930,0.00256,87950.0,87936.0,0.0113769]
[1766159456122,0.00256,87950.0,87938.0,0.0113766]
[1766159456921,0.28323219,87980.0,87954.0,0.0113745]
[1766159457228,1.4660115,87979.0,87959.0,0.011374]
[1766159457635,0.0113716,87978.0,87958.0,0.0113741]
[1766159458023,0.00332,87979.0,87961.0,0.0113736]
[1766159458734,0.00332,87979.0,87959.0,0.0001706]
[1766159458928,0.00332,87979.0,87959.0,0.0115445]
[1766159459246,0.00492,87978.0,87961.0,0.0113737]
[1766159459730,0.28323219,87990.0,87963.0,0.0113734]
[1766159459938,0.0113696,87994.0,87969.0,0.0113726]
[1766159460123,0.0113696,87994.0,87960.0,0.28323219]
[1766159460124,0.28323219,87990.0,87973.0,0.0001705]
[1766159460318,0.00384,87989.0,87973.0,0.0001705]
[1766159460521,0.0152102,87989.0,87973.0,0.0001705]
[1766159460727,0.0113709,87983.0,87959.0,0.0113739]
[1766159460928,0.0113722,87974.0,87945.0,0.0113757]
[1766159461231,0.0113722,87974.0,87948.0,1.45116]
[1766159461232,0.00384,87974.0,87948.0,1.45116]
[1766159461435,0.00384,87974.0,87959.0,0.0113739]
[1766159461934,0.00384,87974.0,87958.0,0.0001705]
[1766159462727,0.00017017,87975.0,87958.0,0.0001705]
[1766159463628,0.00017017,87975.0,87962.0,0.0113736]
[1766159463829,0.00017017,87975.0,87963.0,0.0113734]
[1766159464236,0.00017017,87975.0,87958.0,0.0115446]
[1766159464435,0.00017017,87975.0,87958.0,0.0001705]
[1766159464639,0.00017017,87975.0,87959.0,0.011374]
[1766159464937,0.00017017,87975.0,87961.0,0.0113736]
[1766159465140,0.01154217,87975.0,87958.0,0.0115446]
[1766159465333,0.0113725,87971.0,87958.0,0.0001705]
[1766159465532,0.00017017,87975.0,87958.0,0.0001705]
[1766159465732,0.00017017,87975.0,87963.0,0.0113734]
[1766159466045,0.00017017,87975.0,87960.0,0.0113738]
[1766159466243,0.00017017,87975.0,87963.0,0.0113734]
[1766159466444,0.00017017,87975.0,87965.0,0.0113731]
[1766159466645,0.00017017,87975.0,87961.0,0.0113737]
[1766159467240,0.00017017,87975.0,87958.0,0.0001705]
[1766159467636,0.00017017,87975.0,87959.0,0.011374]
[1766159467833,0.0113721,87974.0,87958.0,0.0001705]
[1766159468145,0.00017017,87975.0,87958.0,0.0001705]
[1766159468339,0.00017017,87975.0,87969.0,0.0113726]
[1766159468539,7e-08,87975.0,87958.0,0.0001705]
[1766159468741,7e-08,87975.0,87959.0,0.0113739]
[1766159468943,7e-08,87975.0,87974.0,0.0113721]
[1766159469334,0.01121021,88004.0,87966.0,0.00576]
[1766159469532,0.00099999,88040.0,87980.0,0.28323219]
[1766159469533,0.0113652,88028.0,87980.0,0.28323219]
[1766159469732,0.0113652,88028.0,88005.0,0.011368]
[1766159469946,0.00576,88031.0,88019.0,0.0113662]
[1766159470247,0.28323219,88050.0,88021.0,0.011366]
[1766159470439,0.0113634,88041.0,88020.0,0.0113661]
[1766159470747,0.00576,88049.0,88027.0,0.00017039]
[1766159471037,0.0113647,88031.0,88027.0,9e-08]
[1766159471244,0.28323219,88060.0,88027.0,9e-08]
[1766159471430,0.0113625,88048.0,88027.0,9e-08]
[1766159471638,0.0113634,88042.0,88027.0,9e-08]
[1766159471829,0.0113637,88039.0,88027.0,9e-08]
[1766159472036,0.00016995,88042.0,88027.0,9e-08]
[1766159474338,0.28323219,88070.0,88027.0,9e-08]
[1766159474535,0.0113611,88059.0,88036.0,0.011364]
[1766159474843,0.0113616,88056.0,88034.0,0.0038]
[1766159475039,0.00576,88060.0,88046.0,0.0113628]
[1766159475238,0.0113613,88058.0,88034.0,0.0038]
[1766159475441,0.00576,88060.0,88034.0,0.0038]
[1766159475831,0.00576,88060.0,88044.0,0.0113629]
[1766159476031,0.0113606,88063.0,88044.0,0.0171229]
[1766159476238,0.0113623,88050.0,88045.0,9e-08]
[1766159476533,0.00576,88059.0,88045.0,9e-08]
[1766159476943,0.0113625,88049.0,88045.0,9e-08]
[1766159477442,0.0001703,88056.0,88020.0,1.45012]
[1766159477641,0.00576,88059.0,88023.0,0.0113657]
[1766159477945,0.011363,88044.0,88025.0,0.1135757]
[1766159478133,0.0113626,88048.0,88026.0,0.00232]
[1766159478337,0.00576,88059.0,88004.0,0.06285478]
[1766159478338,0.00017039,88046.0,88028.0,0.00017039]
[1766159478647,0.00017039,88046.0,88028.0,9e-08]
[1766159479347,0.00225039,88046.0,88028.0,9e-08]
[1766159479645,0.01361319,88046.0,88028.0,9e-08]
[1766159479846,0.0113632,88043.0,88028.0,9e-08]
[1766159480043,0.011364,88037.0,88028.0,9e-08]
[1766159480242,0.0113635,88041.0,88028.0,9e-08]
[1766159480545,0.00225039,88046.0,88028.0,9e-08]
[1766159480934,0.011363,88045.0,88028.0,9e-08]
[1766159481341,0.00576,88049.0,88029.0,0.0113649]
[1766159481549,0.0171222,88051.0,88029.0,0.0113649]
[1766159481948,0.0171222,88051.0,88028.0,9e-08]
[1766159481949,0.0113626,88048.0,88028.0,9e-08]
[1766159482147,0.011363,88045.0,88028.0,9e-08]
[1766159482349,0.0115333,88045.0,88028.0,9e-08]
[1766159482651,0.0113633,88042.0,88028.0,9e-08]
[1766159482846,0.00576,88051.0,88028.0,9e-08]
[1766159483052,0.0113623,88050.0,88028.0,9e-08]
[1766159483248,0.0113643,88034.0,88028.0,9e-08]
[1766159483450,0.41442713,88040.0,87998.0,1.44984]
[1766159483750,0.0113666,88017.0,87994.0,0.0113695]
[1766159483951,0.00564,88024.0,87999.0,0.00204]
[1766159484150,0.00564,88041.0,87999.0,0.00204]
[1766159484455,0.41471285,88050.0,88014.0,0.00017039]
[1766159484456,0.011365,88029.0,88014.0,0.00017039]
[1766159484751,0.0113654,88026.0,88014.0,0.00017039]
[1766159485145,0.0113658,88023.0,88014.0,0.00017039]
[1766159485350,0.0113658,88023.0,88014.0,3.9e-07]
[1766159485546,0.0113668,88015.0,88005.0,0.00204]
[1766159485751,0.00564,88028.0,88005.0,0.00576]
[1766159485945,0.0170051,88028.0,88005.0,0.00576]
[1766159486154,0.0113674,88011.0,88004.0,8.756e-05]
[1766159486456,0.00017039,88016.0,87999.0,9e-08]
[1766159486645,0.0113698,87992.0,87970.0,0.0113726]
[1766159486846,0.0113693,87996.0,87972.0,0.0113722]
[1766159487045,0.0113693,87996.0,87971.0,1.56918667]
[1766159487046,0.0113693,87996.0,87973.0,1.4498]
[1766159487246,8.796e-05,87995.0,87974.0,0.011372]
[1766159487652,8.796e-05,87995.0,87973.0,1.4498]
[1766159487653,0.0113698,87992.0,87976.0,0.00017049]
[1766159487953,0.00384,88004.0,87976.0,0.00017049]
[1766159487954,0.0113699,87991.0,87976.0,0.00017049]
[1766159488161,0.0113703,87988.0,87977.0,0.00208]
[1766159488857,0.0113715,87979.0,87950.0,1.44988]
[1766159489053,0.0113689,87999.0,87949.0,0.00011491]
[1766159489054,0.0113718,87976.0,87952.0,0.0113748]
[1766159489264,0.0113718,87976.0,87953.0,0.00576]
[1766159489451,0.0113713,87980.0,87955.0,0.0113744]
[1766159489751,0.00017049,87976.0,87959.0,0.00017049]
[1766159489952,0.0113724,87972.0,87959.0,0.00017049]
[1766159490257,0.0113723,87972.0,87959.0,0.00017049]
[1766159491047,0.0113723,87972.0,87949.0,0.01149011]
[1766159491048,0.00564,87971.0,87949.0,0.00011491]
[1766159491247,0.0113741,87959.0,87949.0,4.91e-06]
[1766159491554,0.0113739,87960.0,87949.0,4.91e-06]
[1766159492145,0.0113739,87960.0,87936.0,0.0113769]
[1766159492348,0.00576,87967.0,87937.0,0.00576]
[1766159492555,0.0113742,87958.0,87938.0,0.00576]
[1766159493153,0.00013674,87957.0,87938.0,0.0171366]
[1766159493362,0.00017049,87956.0,87939.0,0.00017049]
[1766159493752,0.00212,87968.0,87939.0,0.00017049]
[1766159494159,0.0113744,87957.0,87939.0,0.00017049]
[1766159494663,0.00017049,87957.0,87939.0,0.00017049]
[1766159495147,0.00208,87969.0,87939.0,0.00017049]
[1766159495353,0.0113742,87958.0,87940.0,0.00424]
[1766159495552,0.0113741,87959.0,87941.0,0.00576]
[1766159496967,0.0113741,87959.0,87939.0,0.00017049]
[1766159497172,0.00208,87969.0,87939.0,0.00017049]
[1766159497173,0.00208,87969.0,87939.0,9e-08]
[1766159497467,0.00208,87969.0,87910.0,0.0113803]
[1766159497468,0.0113767,87939.0,87910.0,0.0113803]
[1766159497649,0.0113761,87943.0,87916.0,0.0113795]
[1766159498055,0.011377,87937.0,87911.0,0.0152201]
[1766159498255,0.00384,87946.0,87911.0,0.0152201]
[1766159498256,0.0113764,87941.0,87913.0,0.0113799]
[1766159498467,0.0001706,87936.0,87918.0,0.0001706]
[1766159498854,0.0001706,87936.0,87919.0,0.0113791]
[1766159499269,0.0001706,87936.0,87918.0,0.0001706]
[1766159499449,0.0113745,87956.0,87920.0,0.41471285]
[1766159499655,0.00224,87958.0,87921.0,0.00576]
[1766159499961,0.0113763,87942.0,87921.0,0.00576]
[1766159500258,0.0113761,87943.0,87922.0,0.00016]
[1766159500459,0.0113756,87947.0,87922.0,0.0115387]
[1766159500659,0.0113751,87951.0,87925.0,0.0113783]
[1766159500866,0.0113745,87956.0,87922.0,0.00016]
[1766159501067,0.0113761,87944.0,87922.0,0.0113788]
[1766159501366,0.0113746,87955.0,87923.0,0.00576]
[1766159501769,1.45068,87993.0,87924.0,0.513721]
[1766159501958,1.45068,88032.0,87970.0,0.41471285]
[1766159502268,0.0113652,88027.0,87980.0,0.41471285]
[1766159502456,1.45644,88031.0,87990.0,0.41471285]
[1766159502656,1.45644,88031.0,87993.0,0.0113695]
[1766159502857,0.00576,88031.0,87996.0,0.0113692]
[1766159503058,0.0113649,88030.0,87991.0,0.00576]
[1766159503260,0.0001705,88019.0,88003.0,0.0113683]
[1766159503462,0.0001705,88019.0,88004.0,0.00576]
[1766159503666,0.0001705,88019.0,88002.0,0.0001705]
[1766159503966,0.0113665,88018.0,87993.0,0.0113695]
[1766159504165,0.0113668,88015.0,87994.0,0.00576]
[1766159504562,0.0001705,88019.0,87985.0,0.0113705]
[1766159504764,0.0001705,88019.0,87993.0,0.0001705]
[1766159505160,0.0001705,88019.0,87981.0,0.0113711]
[1766159505364,0.01137,87991.0,87964.0,1.45056]
[1766159505563,0.0113694,87995.0,87971.0,0.0113724]
[1766159505757,0.0113694,87995.0,87973.0,0.0113721]
[1766159506152,0.0001705,87993.0,87975.0,0.0001705]
[1766159506868,0.0113701,87990.0,87974.0,5e-07]
[1766159507064,0.0113698,87992.0,87974.0,5e-07]
[1766159507571,0.0113702,87989.0,87974.0,5e-07]
[1766159508064,0.0115402,87993.0,87974.0,5e-07]
[1766159508269,0.0115402,87993.0,87974.0,0.00388]
[1766159508663,0.01137,87990.0,87973.0,0.0001705]
[1766159508971,0.0001705,87993.0,87974.0,0.00208]
[1766159509170,0.0113669,88015.0,87974.0,0.00208]
[1766159509171,0.0718238,88040.0,87980.0,0.41471285]
[1766159509371,0.0113684,88003.0,87979.0,0.0113714]
[1766159509669,0.0113657,88024.0,87970.0,0.41471285]
[1766159509670,0.0113682,88004.0,87981.0,0.0113711]
[1766159510171,0.0113693,87996.0,87984.0,0.0001705]
[1766159510374,0.0113693,87996.0,87980.0,0.00576]
[1766159510872,0.0113693,87996.0,87979.0,0.00488]
[1766159511270,0.0001705,88001.0,87979.0,5e-07]
[1766159511465,0.0113705,87987.0,87979.0,5e-07]
[1766159511864,0.00564,87998.0,87979.0,5e-07]
[1766159512073,0.0113704,87987.0,87979.0,5e-07]
[1766159512568,0.00564,87998.0,87979.0,5e-07]
[1766159512769,0.011371,87983.0,87979.0,5e-07]
[1766159512969,0.0113723,87973.0,87953.0,1.45044]
[1766159513162,0.011373,87967.0,87954.0,0.00576]
[1766159513476,0.0113726,87971.0,87955.0,0.00576]
[1766159514576,0.0001705,87972.0,87955.0,0.00576]
[1766159515070,0.0113729,87968.0,87955.0,0.00576]
[1766159515764,0.0113736,87962.0,87954.0,5e-07]
[1766159515966,0.011374,87959.0,87954.0,5e-07]
[1766159516278,0.0113727,87970.0,87954.0,5e-07]
[1766159516463,0.011373,87967.0,87954.0,5e-07]
[1766159517176,0.0113733,87965.0,87954.0,5e-07]
[1766159517379,0.0001705,87972.0,87954.0,5e-07]
[1766159517573,0.0113732,87966.0,87954.0,5e-07]
[1766159518079,0.0113726,87971.0,87954.0,5e-07]
[1766159518377,0.0113729,87968.0,87954.0,5e-07]
[1766159518580,0.0113733,87965.0,87954.0,5e-07]
[1766159518782,0.0113742,87958.0,87954.0,5e-07]
[1766159519477,0.011374,87960.0,87954.0,5e-07]
[1766159519774,0.0113745,87956.0,87954.0,5e-07]
[1766159519976,0.0001705,87972.0,87934.0,0.06265951]
[1766159519977,0.00576,87961.0,87934.0,0.06265951]
[1766159520281,0.0113756,87947.0,87931.0,0.00576]
[1766159520472,0.00576,87960.0,87931.0,0.00576]
[1766159520670,0.02492996,87959.0,87937.0,0.0113768]
[1766159520872,0.00576,87960.0,87939.0,0.00011361]
[1766159520873,0.0113744,87956.0,87939.0,0.00011361]
[1766159521175,0.0001705,87957.0,87939.0,0.00011361]
[1766159521369,0.0001705,87957.0,87940.0,0.0113764]
[1766159521568,0.0001705,87957.0,87941.0,0.00576]
[1766159521976,0.0001705,87957.0,87942.0,0.0113761]
[1766159522179,0.0113727,87970.0,87946.0,0.0113756]
[1766159522478,0.0113727,87969.0,87946.0,0.0113757]
[1766159522671,0.0113733,87965.0,87947.0,0.00576]
[1766159522982,0.0113733,87965.0,87941.0,0.11369127]
[1766159523180,0.0113738,87961.0,87944.0,0.0001705]
[1766159523676,0.0113753,87949.0,87928.0,0.11369127]
[1766159523883,0.0113749,87952.0,87929.0,0.0134578]
[1766159524076,0.0113749,87952.0,87932.0,0.0113775]
[1766159524281,0.00576,87955.0,87935.0,0.011377]
[1766159524471,0.0001705,87954.0,87936.0,0.00011361]
[1766159524677,0.0113748,87953.0,87936.0,0.00011361]
[1766159525079,0.0001705,87954.0,87936.0,0.01149051]
[1766159525467,0.0113749,87953.0,87936.0,0.00011361]
[1766159525673,0.0001705,87954.0,87936.0,0.00011361]
[1766159526080,0.0001705,87954.0,87940.0,0.0113763]
[1766159526280,0.0001705,87954.0,87936.0,0.00011361]
[1766159526281,0.0001705,87954.0,87941.0,0.00244]
[1766159526482,0.0001705,87954.0,87944.0,0.0113758]
[1766159526679,0.0001705,87954.0,87941.0,0.00244]
[1766159526876,0.0001705,87954.0,87942.0,0.0113762]
[1766159527194,0.0113737,87962.0,87941.0,0.00244]
[1766159527488,0.011374,87960.0,87941.0,0.00244]
[1766159527681,0.00312,87969.0,87941.0,0.00244]
[1766159527886,0.02490795,87968.0,87941.0,0.00244]
[1766159528092,0.0001705,87963.0,87944.0,0.0113759]
[1766159528380,0.0113745,87956.0,87941.0,0.00244]
[1766159529482,0.0001705,87963.0,87941.0,0.00244]
[1766159529483,0.0113742,87958.0,87941.0,0.00244]
[1766159530191,0.0113741,87959.0,87941.0,0.00244]
[1766159530487,0.0113736,87962.0,87941.0,0.00244]
[1766159530887,0.0001705,87963.0,87948.0,0.0113754]
[1766159531190,0.0001705,87963.0,87950.0,0.0113751]
[1766159531386,0.0001705,87963.0,87943.0,0.011376]
[1766159531589,5e-07,87963.0,87956.0,0.0113743]
[1766159531888,5e-07,87963.0,87954.0,0.00576]
[1766159533674,5e-07,87963.0,87954.0,0.0171346]
[1766159533878,5e-07,87963.0,87954.0,0.00576]
[1766159536291,5e-07,87963.0,87952.0,0.0113748]
[1766159536490,5e-07,87963.0,87955.0,0.00576]
[1766159536893,5e-07,87963.0,87957.0,0.0113742]
[1766159537084,5e-07,87963.0,87955.0,0.00576]
[1766159537694,5e-07,87963.0,87956.0,0.0113744]
[1766159537987,5e-07,87963.0,87957.0,0.00576]
[1766159539295,5e-07,87963.0,87960.0,0.0113738]
[1766159539684,5e-07,87963.0,87957.0,0.00576]
[1766159540193,5e-07,87963.0,87957.0,0.0171342]
[1766159541191,5e-07,87963.0,87957.0,0.00576]
[1766159541391,5e-07,87963.0,87943.0,0.011376]
[1766159541392,5e-07,87963.0,87945.0,0.0113757]
[1766159541690,5e-07,87963.0,87946.0,0.0162956]
[1766159541990,5e-07,87963.0,87948.0,0.0113754]
[1766159542195,5e-07,87963.0,87955.0,0.0113745]
[1766159542498,5e-07,87963.0,87954.0,0.00576]
[1766159542793,5e-07,87963.0,87955.0,0.0113745]
[1766159543293,5e-07,87963.0,87954.0,0.00576]
[1766159543696,5e-07,87963.0,87927.0,0.07214895]
[1766159543697,5e-07,87963.0,87953.0,0.00576]
[1766159544888,5e-07,87963.0,87954.0,0.0113746]
[1766159545189,5e-07,87963.0,87953.0,0.00576]
[1766159545391,5e-07,87963.0,87960.0,0.0113738]
[1766159545997,5e-07,87963.0,87953.0,0.00576]
[1766159546793,5e-07,87963.0,87960.0,0.0113738]
[1766159547089,5e-07,87963.0,87960.0,0.0171338]
[1766159547681,0.00248,87983.0,87973.0,0.0113721]
[1766159547887,0.0138098,87992.0,87972.0,0.00576]
[1766159548196,0.0138098,87992.0,87964.0,0.00576]
[1766159548197,0.011372,87975.0,87964.0,0.00576]
[1766159548385,0.29435464,87990.0,87956.0,0.00284]
[1766159548386,0.00576,87979.0,87956.0,0.00284]
[1766159548585,0.02486239,87978.0,87959.0,0.0001705]
[1766159548793,0.0113722,87973.0,87959.0,5e-07]
[1766159549794,0.0113726,87971.0,87959.0,5e-07]
[1766159550596,0.0113728,87969.0,87959.0,5e-07]
[1766159550894,0.0001705,87976.0,87959.0,5e-07]
[1766159551194,0.0113747,87954.0,87928.0,0.0113779]
[1766159551387,0.0113727,87969.0,87929.0,0.00384]
[1766159551388,0.011375,87952.0,87929.0,0.00384]
[1766159551793,0.0113744,87957.0,87932.0,0.0113775]
[1766159552093,0.0113746,87955.0,87934.0,0.0113772]
[1766159552398,0.0001705,87953.0,87936.0,0.0001705]
[1766159552588,0.0001705,87953.0,87937.0,0.00512]
[1766159553497,0.0113753,87950.0,87936.0,0.0001705]
[1766159553898,0.0113755,87948.0,87936.0,0.0022505]
[1766159554192,0.011376,87944.0,87936.0,0.0059305]
[1766159554393,0.011376,87944.0,87923.0,1.4508]
[1766159554697,0.011376,87944.0,87891.0,0.1887]
[1766159554698,0.01323217,87950.0,87924.0,0.00576]
[1766159554897,0.02486155,87949.0,87919.0,0.0113791]